Cogmind - Beta 16.1 *** ADVENTURER MODE // 2026.02.22 @ 13:30:24 Player: liability Result: Destroyed by C-17 Slicer with Blade Saw Performance ------------- Evolutions (3) 1500 Regions Visited (6) 1200 Robots Destroyed (51) 255 Value Destroyed (1689) 1689 Prototype IDs (3) 60 Alien Tech Used (0) 0 Bonus (500) 500 TOTAL SCORE: 5204 Bonus ------- Entered DSFs 500 Cogmind --------- Core Integrity 0/700 Matter 216/300 Energy 100/100 System Corruption 0% Temperature Cool (0) Movement Core (1350) Ox26 Location -7/DSF Parts ------- > --- POWER (1) -------- (None) > --- PROPULSION (2) --- (None) > --- UTILITY (6) ------ Huge Storage Unit > --- WEAPON (4) ------- (None) > --- INVENTORY (25) --- Light Nuclear Core Heat Sink Medium Battery (150) Peak State ------------ > --- POWER ------------ Improved Ion Engine > --- PROPULSION ------- Light Treads Improved Treads > --- UTILITY ---------- Improved Heat Sink Huge Storage Unit Improved Terrain Scanner ECM Suite Reflective Plating > --- WEAPON ----------- Improved Medium Laser Improved Medium Laser Field Laser Field Laser > --- INVENTORY -------- Light Nuclear Core Advanced Treads Heat Sink Medium Battery Autogun Grenade Launcher Mini Grenade Launcher Plasma Cutter [Rating: 29] Favorites ----------- Power Improved Ion Engine Engine Improved Ion Engine Power Core Fission Core Propulsion Light Treads Treads Light Treads Utility ECM Suite Device ECM Suite Storage Large Storage Unit Protection Reflective Plating Weapon Advanced Beam Cannon Energy Gun Improved Medium Laser Energy Cannon Advanced Beam Cannon Ballistic Gun Light Assault Rifle Launcher Mini Grenade Launcher Build | -11 -10 -9 -9 -8 -7 -7 ------- Run | Yrd Mat Mat Min Mat Fac DSF Slots Evolved 6 | . . 2 . 2 2 . Power . | . . . . . . . Propulsion . | . . . . . . . Utility 4 | . . 2 . 1 1 . Weapon 2 | . . . . 1 1 . Parts Attached 39 | 6 4 5 . 17 1 6 Power 5 | 1 . 1 . 2 . 1 Engine 4 | 1 . 1 . 2 . . Core 1 | . . . . . . 1 Reactor . | . . . . . . . Propulsion 6 | 2 . . . 3 . 1 Treads 6 | 2 . . . 3 . 1 Leg . | . . . . . . . Wheel . | . . . . . . . Hover . | . . . . . . . Flight . | . . . . . . . Utility 11 | 1 2 1 . 7 . . Device 6 | . 1 1 . 4 . . Storage 3 | 1 1 . . 1 . . Processor . | . . . . . . . Hackware . | . . . . . . . Protection 2 | . . . . 2 . . Artifact . | . . . . . . . Weapon 17 | 2 2 3 . 5 1 4 Energy Gun 6 | . . 1 . 4 1 . Energy Cannon 5 | . 2 2 . 1 . . Ballistic Gun 3 | 2 . . . . . 1 Ballistic Cannon . | . . . . . . . Launcher 2 | . . . . . . 2 Special Weapon 1 | . . . . . . 1 Impact Weapon . | . . . . . . . Slashing Weapon . | . . . . . . . Piercing Weapon . | . . . . . . . Special Melee Weapon . | . . . . . . . Unidentified Prototypes 3 | . . 3 . . . . Parts Lost 18 | . . 1 . 6 . 11 Power 2 | . . . . 1 . 1 Propulsion 4 | . . . . 2 . 2 Utility 6 | . . 1 . 2 . 3 Weapon 6 | . . . . 1 . 5 Highest Loss Streak 7 | . . 1 . 3 . 7 To Critical Strikes . | . . . . . . . Average Backups 6 | . 3 7 9 7 8 6 Power . | . . . 1 . 1 1 Propulsion . | . . . . . 1 . Utility 1 | . . 1 1 1 2 2 Weapon 3 | . 2 5 6 3 3 2 Tool/Special . | . . . . . . . Unused Backups 5 | . . 1 . 1 . 3 Power 2 | . . . . 1 . 1 Propulsion . | . . . . . . . Utility 2 | . . . . . . 2 Weapon 1 | . . 1 . . . . Tool/Special . | . . . . . . . Average Slot Usage (%) 82 | . 98 75 77 85 92 51 Engine 9 | . 14 11 11 8 7 2 Treads 17 | . 28 22 22 15 15 6 Device 17 | . 12 10 11 22 23 12 Storage 9 | . 14 11 11 9 7 7 Protection 3 | . . . . 5 7 2 Energy Gun 9 | . . . . 15 30 15 Energy Cannon 12 | . 18 21 22 8 . . Ballistic Gun 1 | . 9 . . . . . Peak Build Rating 29 | 6 9 14 14 28 29 29 Average Rating 17 | 4 8 12 14 21 29 14 On Entrance 14 | . 6 9 14 14 26 29 Avg Prop Armor Cover (%) . | . . . . . . . Naked Turns . | . . . . . . . Heaviest Build 107 | 13 34 38 38 104 107 107 Greatest Support 45 | 40 40 40 40 45 43 43 Greatest Overweight (x) 30 | . . . . 14 2 30 Average Overweight (x) 1 | . . . . 2 2 8 Largest Inventory Capacity 25 | 8 15 15 15 25 25 25 Average Capacity 18 | 6 11 15 15 21 25 25 Most Carried 10 | . 6 9 9 10 8 8 Average Carried 6 | . 3 8 9 7 8 6 Final Capacity 25 | 8 15 15 15 25 25 25 Final Carried 9 | . 5 9 9 9 8 3 Class Distribution -------------------- 62% | Mutant 27% | Tank 8% | Gunner Dominant Class ---------------- Mutant | -10/Materials Mutant | -9/Materials Mutant | -9/Mines Tank | -8/Materials Tank | -7/Factory Mutant | -7/DSF Resources | -11 -10 -9 -9 -8 -7 -7 ----------- Run | Yrd Mat Mat Min Mat Fac DSF Matter Collected 596 | 264 55 56 . 221 . . Remotely 101 | . 55 46 . . . . Salvage Created 2229 | . 154 220 33 1498 . 324 Parts 101 | . 9 13 2 55 . 22 Haulers Intercepted 1 | . . 1 . . . . Recyclers Shooed 2 | . . 1 . 1 . . Parts Field Recycled . | . . . . . . . Retrieved Matter . | . . . . . . . Parts Self-Destructed . | . . . . . . . Prevented . | . . . . . . . Parts Restored . | . . . . . . . Kills | -11 -10 -9 -9 -8 -7 -7 ------- Run | Yrd Mat Mat Min Mat Fac DSF Combat Hostiles Destroyed 41 | . 5 5 3 23 . 5 Guns 16 | . 2 . . 12 . 2 Cannons 17 | . 3 5 3 6 . . AOE 3 | . . . . . . 3 Classes Destroyed 11 | . 3 2 . 4 . 2 Worker 1 | . . . . 1 . . Hauler 1 | . . 1 . . . . Recycler 2 | . . . . 2 . . Operator 1 | . . . . 1 . . Watcher 5 | . 1 1 . 3 . . Swarmer 11 | . 3 3 3 . . 2 Grunt 20 | . 2 1 . 17 . . Duelist 1 | . . . . 1 . . Sentry 7 | . . 1 . 5 . 1 Hunter 1 | . . . . . . 1 Heavy 1 | . . . . . . 1 Best Kill Streak 4 | . 3 4 3 3 . 3 Combat Bots Only 3 | . 3 3 3 3 . 3 Max Kills in Single Turn 2 | . 1 1 1 2 . 2 Gunslinging 1 | . . . . 1 . . Exploded 2 | . . . . . . 2 Melee . | . . . . . . . Uniques/NPCs Destroyed . | . . . . . . . Combat | -11 -10 -9 -9 -8 -7 -7 -------- Run | Yrd Mat Mat Min Mat Fac DSF Hostile Shots Fired 436 | . 19 35 14 171 . 197 Missed 121 | . 3 10 5 44 . 59 Hits 315 | . 16 25 9 127 . 138 Melee 30 | . . . . . . 30 Projectile 285 | . 16 25 9 127 . 108 AOE 1 | . . . . . . 1 Critical Strikes 23 | . 1 2 1 5 . 14 Damage Taken 3492 | . 118 186 55 1558 . 1575 Core 1050 | . 42 31 15 250 . 712 Absorbed by Shields . | . . . . . . . Ignored by Resistances 1186 | . 38 58 18 597 . 475 Core Remaining (%) 81 | 100 83 . 88 54 . . Volleys Fired 129 | 1 13 17 8 77 . 13 Largest 4 | 2 2 2 1 3 . 4 Hottest 238 | 40 136 136 68 204 . 238 Shots Fired 287 | 2 26 31 8 186 . 34 Gun 166 | 2 12 . . 121 . 31 Cannon 118 | . 14 31 8 65 . . Launcher 3 | . . . . . . 3 Special . | . . . . . . . Kinetic 16 | 2 12 . . . . 2 Thermal 264 | . 14 31 8 182 . 29 Explosive 3 | . . . . . . 3 Electromagnetic 4 | . . . . 4 . . Robot Hit Streak 21 | 1 14 11 5 21 . 18 Robot Miss Streak 3 | 1 3 3 2 3 . 1 Penetration Max . | . . . . . . . Secondary Targets 3 | . . . . 3 . . Max Gunslinging Chain 1 | . . . . 1 . . Shots Hit Robots 211 | 1 16 18 6 142 . 28 Core Hits 89 | . 8 9 3 52 . 17 Critical Kills . | . . . . . . . Critical Parts Destroyed . | . . . . . . . Critical Strikes 9 | . . . . 8 . 1 Burn 9 | . . . . 8 . 1 Melee Attacks . | . . . . . . . Impact . | . . . . . . . Slashing . | . . . . . . . Piercing . | . . . . . . . Sneak Attacks . | . . . . . . . Combat Hostiles . | . . . . . . . Follow-up Attacks . | . . . . . . . Damage Inflicted 4207 | 8 269 412 127 2658 . 733 Guns 2204 | 8 102 . . 1660 . 434 Cannons 1684 | . 162 409 124 989 . . Explosions 294 | . . . . . . 294 Melee . | . . . . . . . Ramming 25 | . 5 3 3 9 . 5 Kinetic 126 | 8 102 . . . . 16 Thermal 3721 | . 162 409 124 2608 . 418 Explosive 294 | . . . . . . 294 Electromagnetic 41 | . . . . 41 . . Impact . | . . . . . . . Slashing . | . . . . . . . Piercing . | . . . . . . . Highest Corruption 1 | . . . . 1 . . Average Corruption 1 | . . . . 1 . . Corruption Purged . | . . . . . . . Corruption Blocked . | . . . . . . . Effects 12 | . . . . 12 . . Message Errors 3 | . . . . 3 . . Matter Fused 3 | . . . . 3 . . Heat Flow Errors 2 | . . . . 2 . . Energy Discharges 1 | . . . . 1 . . Parts Fused 1 | . . . . 1 . . Data Loss (minor) 1 | . . . . 1 . . Weapon Failures 1 | . . . . 1 . . Overload Shots . | . . . . . . . Overflow Damage 4 | . . 1 . . . 3 Projectiles 1 | . . 1 . . . . Explosions 3 | . . . . . . 3 Melee . | . . . . . . . Knockbacks 1 | . . . . 1 . . Impact 1 | . . . . 1 . . Kinetic . | . . . . . . . Secondary . | . . . . . . . Self-Inflicted Damage 15 | . . . . . . 15 Shots 1 | . . . . . . 1 Rammed 10 | . 2 2 2 2 . 2 Targets Rammed 10 | . 2 2 2 2 . 2 Kicked . | . . . . . . . Crushed . | . . . . . . . Highest Temperature 512 | . 319 312 144 512 . 240 Average Temperature 113 | . 120 117 72 114 . 110 Received Heat Transfer 1548 | . 57 57 . 1143 . 291 Effects 13 | . . 4 . 9 . . Energy Bleed 2 | . . 2 . . . . Interference 7 | . . 2 . 5 . . Short Circuit 2 | . . . . 2 . . Damage (minor) 1 | . . . . 1 . . Damage (core) 1 | . . . . 1 . . Siege Activations . | . . . . . . . Martial Activations . | . . . . . . . Shielding Activations . | . . . . . . . Robots Disrupted . | . . . . . . . Combat Hostiles . | . . . . . . . Robots Corrupted . | . . . . . . . Combat Hostiles . | . . . . . . . Parts Fried . | . . . . . . . Impact Corruptions . | . . . . . . . Robots Melted 5 | . . . . 5 . . Combat Hostiles 5 | . . . . 5 . . Parts Melted 29 | . . 4 2 20 . 3 Heat Transferred 8177 | . 296 740 222 5920 . 999 Parts Sabotaged . | . . . . . . . Parts Stolen . | . . . . . . . Parts Stripped . | . . . . . . . Power Chain Reactions . | . . . . . . . Alert | -11 -10 -9 -9 -8 -7 -7 ------- Run | Yrd Mat Mat Min Mat Fac DSF Maximum Alert Level . | . . . . . . . Low Security (%) 100 | 100 100 100 100 100 100 100 Level 1 . | . . . . . . . Level 2 . | . . . . . . . Level 3 . | . . . . . . . Level 4 . | . . . . . . . Level 5 . | . . . . . . . High Security . | . . . . . . . Max Security . | . . . . . . . Peak Influence 110 | . 110 57 70 81 3 84 Initial 36 | . . 36 8 . 3 . Average 19 | . 17 18 11 20 3 36 Influence Increases 1169 | . 187 134 70 644 . 134 Destroy 0b10 Robot/C 820 | . 100 100 60 460 . 100 Destroy 0b10 Robot/NC 65 | . 5 10 . 35 . 15 Destroy Leader 192 | . 22 24 10 126 . 10 Successful Hack 5 | . . . . 5 . . Destroy Structure 12 | . . . . 3 . 9 Lose Combat Pursuer 75 | . 60 . . 15 . . Influence Decreases 1085 | . 87 207 97 634 7 53 Entered New Map 93 | . . 64 19 . 7 3 Time Decay 852 | . 87 133 78 554 . . Lost Part 120 | . . 10 . 60 . 50 Lost Ally 20 | . . . . 20 . . Squads Dispatched 9 | . . 1 . 6 . 2 Investigation 4 | . . . . 4 . . Extermination . | . . . . . . . Reinforcement 3 | . . 1 . . . 2 Assault . | . . . . . . . Garrison 2 | . . . . 2 . . Intercept . | . . . . . . . Searches Triggered . | . . . . . . . Construction Impeded . | . . . . . . . Haulers Reinforced . | . . . . . . . Active Scanning Responses . | . . . . . . . Cargo Convoy Interrupts . | . . . . . . . Stealth | -11 -10 -9 -9 -8 -7 -7 --------- Run | Yrd Mat Mat Min Mat Fac DSF Distress Signals 5 | . 1 1 . 3 . . Communications Jammed . | . . . . . . . Distress Signals . | . . . . . . . Times Spotted 85 | . 8 17 4 44 . 12 Peak Tracking Total 8 | . 6 8 4 5 . 6 Tactical Retreats 9 | . 1 . 1 7 . . ECM-based Alert Blocks 8 | . . . 1 7 . . Traps | -11 -10 -9 -9 -8 -7 -7 ------- Run | Yrd Mat Mat Min Mat Fac DSF Traps Triggered 3 | . . . . 3 . . Indirectly . | . . . . . . . Trap Hack Attempts . | . . . . . . . Triggered . | . . . . . . . Disarmed . | . . . . . . . Reprogrammed . | . . . . . . . Reused . | . . . . . . . Traps Extracted . | . . . . . . . Installed . | . . . . . . . Triggered . | . . . . . . . Machines | -11 -10 -9 -9 -8 -7 -7 ---------- Run | Yrd Mat Mat Min Mat Fac DSF Machines Disabled . | . . . . . . . Max in Single Turn . | . . . . . . . Machines Repaired . | . . . . . . . Machines Dismantled . | . . . . . . . Machines Sabotaged . | . . . . . . . Overloaded Fab Kills . | . . . . . . . Hacking | -11 -10 -9 -9 -8 -7 -7 --------- Run | Yrd Mat Mat Min Mat Fac DSF Machines Accessed 7 | . . 2 . 4 1 . Terminals 3 | . . . . 2 1 . Fabricators . | . . . . . . . Repair Stations 1 | . . 1 . . . . Recycling Units 1 | . . 1 . . . . Scanalyzers 1 | . . . . 1 . . Garrison Access 1 | . . . . 1 . . Total Hacks 10 | . . 2 . 7 1 . Successful 10 | . . 2 . 7 1 . Failed . | . . . . . . . Catastrophic . | . . . . . . . Database Lockouts . | . . . . . . . Manual 1 | . . . . 1 . . Terminals 3 | . . . . 2 1 . Fabricators . | . . . . . . . Repair Stations 1 | . . 1 . . . . Recycling Units 1 | . . 1 . . . . Scanalyzers 2 | . . . . 2 . . Garrison Access 3 | . . . . 3 . . Terminal Hacks 3 | . . . . 2 1 . Open DSF 1 | . . . . . 1 . Recycling Unit Index 1 | . . . . 1 . . Zone Layout 1 | . . . . 1 . . Fabricator Hacks . | . . . . . . . Repair Station Hacks 1 | . . 1 . . . . Scan Component 1 | . . 1 . . . . Recycling Unit Hacks 1 | . . 1 . . . . Report Inventory 1 | . . 1 . . . . Scanalyzer 2 | . . . . 2 . . Retrieve Study 2 | . . . . 2 . . Garrison Access Hacks 2 | . . . . 2 . . Unlock Access 1 | . . . . 1 . . Coupler Status 1 | . . . . 1 . . Unauthorized Hacks 1 | . . . . 1 . . Terminals . | . . . . . . . Fabricators . | . . . . . . . Repair Stations . | . . . . . . . Recycling Units . | . . . . . . . Scanalyzers . | . . . . . . . Garrison Access 1 | . . . . 1 . . Reprogram 1 | . . . . 1 . . Data Cores Recovered 1 | . . . . 1 . . Used . | . . . . . . . Hacking Detections 3 | . . 1 . 2 . . Full Trace Events 1 | . . . . 1 . . Feedback Events . | . . . . . . . Feedback Blocked . | . . . . . . . Robot Schematics Acquired . | . . . . . . . Robots Built . | . . . . . . . Authchips . | . . . . . . . Time . | . . . . . . . Total Robot Build Rating . | . . . . . . . Part Schematics Acquired . | . . . . . . . Parts Built . | . . . . . . . Authchips . | . . . . . . . Time . | . . . . . . . Total Part Build Rating . | . . . . . . . Part Studies Acquired 2 | . . . . 2 . . Parts Repaired . | . . . . . . . Time . | . . . . . . . Parts Recycled . | . . . . . . . Recycled Matter . | . . . . . . . Retrieved Matter . | . . . . . . . Retrieved Components . | . . . . . . . Parts Scanalyzed . | . . . . . . . Part Schematics Acquired . | . . . . . . . Parts Damaged . | . . . . . . . Bothacking | -11 -10 -9 -9 -8 -7 -7 ------------ Run | Yrd Mat Mat Min Mat Fac DSF Used RIF Installer . | . . . . . . . Robots Hacked . | . . . . . . . Non-combat . | . . . . . . . Combat . | . . . . . . . Robot Hacks Applied . | . . . . . . . Relay Couplers Released . | . . . . . . . Fabnet Peak Effective % . | . . . . . . . Robots Rewired . | . . . . . . . Allies Hacked . | . . . . . . . Hacks Repelled . | . . . . . . . Allies | -11 -10 -9 -9 -8 -7 -7 -------- Run | Yrd Mat Mat Min Mat Fac DSF Total Allies 1 | . . . . 1 . . Largest Group 1 | . . . . 1 . . Highest-Rated Group 16 | . . . . 16 . . Highest-Rated Ally 16 | . . . . 16 . . Total Orders . | . . . . . . . Ally Attacks 6 | . . . . 6 . . Total Damage 80 | . . . . 80 . . Kills . | . . . . . . . Allies Corrupted . | . . . . . . . Allies Melted . | . . . . . . . Intel | -11 -10 -9 -9 -8 -7 -7 ------- Run | Yrd Mat Mat Min Mat Fac DSF Active Infowar (turns) 2422 | . . 23 440 1740 7 212 Terrain 478 | . . . . 389 7 82 Seismic 657 | . . . . 657 . . ECM 2422 | . . 23 440 1740 7 212 Robot Analysis Total . | . . . . . . . Derelict Logs Recovered . | . . . . . . . Drone Launches . | . . . . . . . Drone Recoveries . | . . . . . . . Exploration | -11 -10 -9 -9 -8 -7 -7 ------------- Run | Yrd Mat Mat Min Mat Fac DSF Turns Passed 3304 | 75 387 401 440 1767 7 227 Spaces Moved 1276 | 42 207 209 264 521 3 30 Core 32 | 3 . . . 22 . 7 Treads 1244 | 39 207 209 264 499 3 23 Legs . | . . . . . . . Wheels . | . . . . . . . Hover . | . . . . . . . Flight . | . . . . . . . Fastest Speed 50 | 50 160 160 160 152 280 280 Average Speed 219 | 152 160 160 160 282 280 573 Slowest Speed 1550 | 160 160 160 160 750 280 1550 Overloaded Moves . | . . . . . . . Propulsion Burnouts . | . . . . . . . Robots Hopped . | . . . . . . . Potential Cave-ins . | . . . . . . . Cave-ins Triggered . | . . . . . . . Exploration Rate (%) 37 | 4 39 28 60 49 . 43 Regions Visited 6 Branch Regions 1 Pre-discovered Areas . | . . . . . . . Known Exits Taken 1 | . . . . . 1 . Unknown Exits Taken 5 | 1 1 1 1 1 . . Scrap Searched 1 | . . . 1 . . . Spaces Dug . | . . . . . . . Terrain Destroyed 9 | . . . . . . 9 Melee . | . . . . . . . Projectile . | . . . . . . . AOE 9 | . . . . . . 9 Terrain Rammed . | . . . . . . . Walls Destroyed . | . . . . . . . Machines Disabled . | . . . . . . . Actions | -11 -10 -9 -9 -8 -7 -7 --------- Run | Yrd Mat Mat Min Mat Fac DSF Total 1507 | 48 237 243 273 651 3 52 Wait 9 | . . 1 . 8 . . Move 1270 | 41 206 208 263 520 2 30 Hop . | . . . . . . . Pick Up 21 | . 7 6 . 8 . . Fast Attach 25 | 6 3 2 . 12 . 2 Attach 14 | . . 1 . 8 1 4 Detach 1 | . . . . 1 . . Swap 7 | . 1 3 . 3 . . Drop 21 | . 5 3 . 12 . 1 Fire 129 | 1 13 17 8 77 . 13 Melee . | . . . . . . . Ram . | . . . . . . . Kick . | . . . . . . . Crush 10 | . 2 2 2 2 . 2 Escape Stasis . | . . . . . . . Rewire . | . . . . . . . Trap . | . . . . . . . Miscellaneous . | . . . . . . . Route ------- -11/Scrapyard -10/Materials -9/Materials -9/Mines -8/Materials (discovered 2 exits: *Fac / Gar) -7/Factory -7/DSF History --------- Turn | Location | Event 4 | -11/Scrapyard | Discovered new exit (range 15) 76 | -11/Scrapyard | Entered Materials 301 | -10/Materials | Build established: Mutant 340 | -10/Materials | Discovered new exit (range 10) 463 | -10/Materials | Entered another Materials area 463 | -9/Materials | Evolved 2 slots: Utility x2 848 | -9/Materials | Discovered new exit (range 9) 864 | -9/Materials | Entered Mines 1288 | -9/Mines | Discovered new exit (range 9) 1304 | -9/Mines | Entered Materials 1304 | -8/Materials | Evolved 2 slots: Utility x1, Weapon x1 1967 | -8/Materials | Lost 3 parts (1p1u1w) 2803 | -8/Materials | Build established: Tank 2878 | -8/Materials | Identified exit to Garrison 2917 | -8/Materials | Garrison activated, responded to threat 3032 | -8/Materials | Discovered new exit (range 15) 3071 | -8/Materials | Entered Factory 3071 | -7/Factory | Evolved 2 slots: Utility x1, Weapon x1 3078 | -7/Factory | Identified exit to DSF 3078 | -7/Factory | Entered DSF 3114 | -7/DSF | Additional patrols routed to DSF 3197 | -7/DSF | Lost 7 parts (1p2n3u1w) 3250 | -7/DSF | Lost 4 parts (4w) 3260 | -7/DSF | Core integrity fell below 50% 3297 | -7/DSF | Core integrity fell below 20% 3305 | -7/DSF | Destroyed by C-17 Slicer with Blade Saw Last Messages --------------- 03219_ Destroyed Grenade Launcher. 03219_ A-02 Transporter destroyed. 03221_ Penetrated by Slug. 03222_ H-55 Commando destroyed. 03222_ A-02 Transporter destroyed. 03250_ Knocked back. 03253_ Mni. Grenade Launcher severed. 03259_ Autogun severed. 03260_ Plasma Cutter severed. 03261_ Acquired Arm. Treads. 03262_ Slammed into C-17 Slicer. 03274_ Arm. Treads severed. 03281_ C-30 ARC bursts open, deploying its payload. 03281_ G-50 Soldier unfolds itself. 03281_ G-47 Trooper unfolds itself. 03284_ Fission Core severed. 03285_ Critical hit (Burn: +37). 03290_ ECM Suite severed. 03295_ Critical hit (Burn: +37). 03297_ The unstable cave ceiling collapses. Map ----- +----------------------------------------------------+ | ?????????????????????????????????????????? | | ?????????????????????????????????????????? | | ?????????????????????????????????????????? | | ?????????????????????????????????????????? | | ?????????????????????????????????????????? | | ?????????????????????????????????????????? | | ?????????????????????????????????????????? | | ?????????????????????????????????????????? | | ?????????????????????????????????????????? | | ?????????????????????????????????????????? | | ?????????????????????#???????????????????? | | ????????????????????#???????#???#????????? | | ?????????????????????????????????????????? | | ?????????????????????????????????????????? | | ???????????????????????????#????#????????? | | ?????????????????????????????????????????? | | ????????????##??? ???????????????#???#???? | | ????????????#[[ ??????#??????????????????? | | ????????????#[[ ????????#???#????????????? | | ????????????#[[ ??????????#?????????????? | | ??????????????#!%!#################??????? | | ?????????????##=* !%=** # ## ##?????? | | ??????????!!##a* = #]**# ## #??????? | | ?????? %% g |[*[ % ##?????? | | ?????? g c !!% %;#?????? | | ?????? g *c@ %=! ;#??#??? | | ???????!#!!!##= = ! ;# ##?????? | | ?????????????#!% ### ! # ## #??????? | | ?????????????# ??########## ###??????? | | ????????????# ??????????#// /#???????? | | ????????????# ! ???????????#// /#???????? | | ????????????# !????????????#// /#???????? | | ????????????##??? ?????????### ##???????? | | ???????????????????????????#// /#???????? | | ????????????????????????? ?#// /#?????#?# | | ????????????????????????#??### ##??#????? | | ?????????????????????? ?#???## ###?#????? | | ???????????????????## #//## ""###????? | | ???????????????? """""#???? | | ???????????????? ""##"##??? | | ????????????????!!!!#///#//##"""""#??????? | | ????????????????????#???###?#"""""#??????? | | ????????????????????????????##"####??????? | | ?????????????????????????????#"?#????????? | | ?????????????????????????????#"??????????? | | ?????????????????????????????????????????? | | ?????????????????????????????????????????? | | ?????????????????????????????????????????? | | ?????????????????????????????????????????? | | ?????????????????????????????????????????? | +----------------------------------------------------+ Best States ------------- Heat Dissipation 48 Energy Generation 18 Energy Capacity 310 Matter Stores 300 Matter Capacity 300 Sight Range 16 Terrain Scan Range 16 Terrain Scan Density 10 ECM Strength 1 Armor Coverage 150 Resistance: KI 20 Resistance: TH 30 Resistance: EX 20 Resistance: EM 20 Resistance: I 20 Resistance: S 20 Resistance: P 20 Evasion (%) 40 Recoil Reduction 2 Offensive Hacking 10 Item Schematics ----------------- None Robot Schematics ------------------ None Fabricated ------------ Nothing Repaired ---------- Nothing Studied --------- Lgt. Treads | -8/Materials | Hacked Ion Engine | -8/Materials | Hacked Alien Tech Used ----------------- None Achievements -------------- None Challenges ------------ None Game ------ Seed HypertargetingShadeMonowheel Manual? 0 Play Time 00:25:01 Cumulative 33.4 hours Start 2026.02.22 @ 13:07:20 End 2026.02.22 @ 13:30:24 Sessions 1 Manual Loads 0 Difficulty Adventurer Special Mode None Game No. 34 Rogue 0 Adventurer 34 Explorer 0 Win Type - Total 0 Types 0/0/0/0/0/0/0/0/0/0 Lore% 12 Gallery% 32 Achievement% 28 Wizard Run 0 Options --------- Layout 0 ASCII 0 Keyboard 0 Movement Mouse Keybinds 0 Fullscreen 1 Font 18/SmallcapsGlow Map View 76x50 Zoom Use 0% Tactical HUD 1 Map Filters NONE Filters NONE Steam 1 RUN: 89c19a21-1a25-4276-a901-e0c2aea926af